bitfinex/quotes_ETHUSD_20240621
["timestamp","ask_amount","ask_price","bid_price","bid_amount"]
[1718954422794,1.75327333,3520.8,3520.7,7.31056]
[1718954423253,1.75321454,3520.8,3520.7,7.31056]
[1718954423742,1.75308861,3520.8,3520.7,7.31056]
[1718954423956,1.26127162,3520.8,3520.7,7.31056]
[1718954424283,1.75308974,3520.8,3520.7,7.31056]
[1718954428148,0.49181812,3520.8,3520.7,7.31056]
[1718954431798,0.49181812,3520.8,3520.7,7.36297176]
[1718954434083,0.49181812,3520.8,3520.7,7.91297176]
[1718954434485,0.49181812,3520.8,3520.7,7.03997176]
[1718954434673,0.49181812,3520.8,3520.7,7.91297176]
[1718954441806,0.4917839,3521.6,3520.7,7.91297176]
[1718954442003,1.26160751,3521.5,3521.4,0.873]
[1718954442231,1.75339141,3521.5,3521.4,0.873]
[1718954442456,1.75339141,3521.5,3521.4,0.92420135]
[1718954442818,1.26160751,3521.5,3521.4,0.92420135]
[1718954443047,1.26160751,3521.6,3521.4,0.92420135]
[1718954443218,1.26160751,3521.5,3521.4,0.92420135]
[1718954443463,1.7533899,3521.5,3521.4,0.92420135]
[1718954443636,1.26160751,3521.5,3521.4,0.92420135]
[1718954443843,1.7533899,3521.5,3521.4,0.92420135]
[1718954444046,1.26160751,3521.5,3521.4,0.92420135]
[1718954444234,0.49178699,3521.5,3521.4,0.92420135]
[1718954444424,1.7533945,3521.5,3521.4,0.05120135]
[1718954444643,1.7533945,3521.5,3521.2,0.873]
[1718954444825,1.7533945,3521.4,3521.3,0.05120135]
[1718954445021,1.7533945,3521.4,3521.2,0.873]
[1718954445256,1.7533945,3521.3,3521.2,0.873]
[1718954446125,1.7533901,3521.3,3521.2,0.873]
[1718954449283,1.75339539,3521.3,3521.2,0.873]
[1718954452238,1.75339539,3521.3,3521.2,0.92422121]
[1718954452489,1.75339657,3521.3,3521.2,0.92422121]
[1718954452848,1.26160751,3521.3,3521.2,0.92422121]
[1718954453063,1.75339656,3521.3,3521.2,0.92422121]
[1718954453688,1.26160751,3521.3,3521.2,0.92422121]
[1718954453963,0.49178886,3521.3,3521.2,0.92422121]
[1718954454164,1.26160751,3521.3,3521.2,0.92422121]
[1718954454364,1.75339637,3521.3,3521.2,0.92422121]
[1718954455462,1.26160751,3521.3,3521.2,0.92422121]
[1718954455650,1.75339013,3521.6,3521.2,0.92422121]
[1718954455890,1.75339013,3521.5,3521.2,0.92422121]
[1718954456089,1.75339013,3521.4,3521.2,0.92422121]
[1718954456385,1.75339013,3521.3,3521.2,0.92422121]
[1718954457604,1.75339013,3521.3,3521.2,0.05122121]
[1718954457753,4.10909013,3521.3,3521.2,0.05122121]
[1718954457951,4.10909013,3521.3,3521.1,0.873]
[1718954458256,1.75339013,3521.2,3521.1,0.873]
[1718954458801,1.75343552,3521.2,3521.1,0.873]
[1718954460793,1.75343552,3521.2,3520.8,8.0384]
[1718954460944,1.75343552,3521.1,3520.8,8.0384]
[1718954461239,0.41091355,3521.2,3520.8,8.0384]
[1718954461240,1.75346913,3521.0,3520.8,8.9114]
[1718954461490,2.3557,3521.3,3520.8,8.9114]
[1718954461491,1.75346913,3520.9,3520.8,8.9114]
[1718954461846,1.75344975,3520.9,3520.8,8.9114]
[1718954462569,1.75344975,3520.9,3520.8,3.873]
[1718954462902,1.75344975,3520.9,3520.8,0.873]
[1718954463198,1.75344975,3520.9,3520.8,3.873]
[1718954464200,1.7534578,3520.9,3520.8,3.873]
[1718954465357,1.7534578,3520.9,3520.8,3.6261]
[1718954465670,2.3766,3521.7,3520.8,7.1761]
[1718954465854,1.26131164,3521.6,3521.4,0.873]
[1718954466210,1.26131164,3521.5,3521.4,0.873]
[1718954466562,1.26131164,3521.6,3521.4,0.873]
[1718954466766,1.26131164,3521.5,3521.4,0.873]
[1718954466971,1.75309996,3521.5,3521.4,0.873]
[1718954467390,1.75309996,3521.5,3521.4,0.92428325]
[1718954470083,1.26131164,3521.5,3521.4,0.92428325]
[1718954476462,1.26131164,3521.5,3521.4,0.05128325]
[1718954476890,1.26131164,3521.5,3521.4,0.051076]
[1718954477485,1.26172699,3521.5,3521.4,0.051076]
[1718954478790,1.62041969,3521.5,3521.4,0.051076]
[1718954479288,1.6203454,3521.5,3521.0,0.873]
[1718954479468,2.3252,3521.7,3521.4,0.051076]
[1718954479669,1.26165003,3521.6,3521.0,0.873]
[1718954479868,2.3252,3521.7,3521.2,0.873]
[1718954480069,1.26164816,3521.6,3521.2,0.873]
[1718954480299,1.26164816,3521.5,3521.3,0.051076]
[1718954480592,1.26164816,3521.4,3521.2,0.873]
[1718954480797,1.26164816,3521.3,3521.2,0.873]
[1718954482395,1.26164816,3521.3,3521.2,0.924076]
[1718954488287,1.26164816,3521.3,3521.2,0.051076]
[1718954488491,3.73504816,3521.3,3521.2,0.051076]
[1718954488692,4.10855298,3521.3,3520.9,3.873]
[1718954488889,2.4734,3521.3,3521.2,0.05113806]
[1718954489213,3.73499975,3521.3,3521.2,0.05113806]
[1718954489410,3.73499975,3521.3,3520.9,3.873]
[1718954489616,1.26159975,3521.2,3520.9,3.873]
[1718954489823,1.26159975,3521.1,3520.9,3.873]
[1718954490001,1.26159975,3521.0,3520.9,0.873]
[1718954490591,1.26159975,3521.2,3520.9,0.873]
[1718954490923,1.26159975,3521.1,3520.9,0.873]
[1718954491098,1.26159975,3521.0,3520.9,0.873]
[1718954491496,1.26159975,3521.2,3520.9,0.873]
[1718954491825,1.26159975,3521.1,3520.7,3.0]
[1718954491990,0.23252,3521.7,3520.6,2.2922]
[1718954491991,1.26159975,3521.0,3520.6,2.2922]
[1718954492185,2.3347,3521.5,3521.0,0.873]
[1718954492428,1.26141827,3521.4,3521.0,0.873]
[1718954492590,1.26141827,3521.3,3521.0,0.873]
[1718954492792,1.26141827,3521.2,3521.0,0.873]
[1718954493135,1.26141827,3521.1,3521.0,0.873]
[1718954494411,2.3347,3521.5,3521.0,0.873]
[1718954494412,1.26141827,3521.4,3521.0,0.873]
[1718954494592,1.26141827,3521.3,3521.0,0.873]
[1718954494922,2.3347,3521.5,3521.0,0.873]
[1718954494923,1.26141827,3521.2,3521.0,0.873]
[1718954495127,1.26141827,3521.1,3521.0,0.873]
[1718954495432,1.7532551,3521.1,3521.0,3.2697]
[1718954495729,1.7532551,3521.1,3521.0,6.89667]
[1718954496429,1.75323162,3521.1,3521.0,6.89667]
[1718954497632,1.75323162,3521.1,3521.0,6.94449445]
[1718954498201,1.26139479,3521.1,3521.0,6.94449445]
[1718954498907,0.49179665,3521.1,3521.0,6.94449445]
[1718954499134,1.26139479,3521.1,3521.0,6.94449445]
[1718954499425,1.75319144,3521.5,3521.0,6.94449445]
[1718954499654,1.75319144,3521.4,3521.1,3.69444945]
[1718954499798,1.75319144,3521.3,3521.1,3.69444945]
[1718954500001,1.75319144,3521.2,3521.1,3.69444945]
[1718954500205,1.75319144,3521.2,3521.1,4.56744945]
[1718954500399,1.75319144,3521.2,3521.1,6.90014945]
[1718954501250,1.26139479,3521.2,3521.1,6.90014945]
[1718954501448,0.4917888,3521.2,3521.1,6.90014945]
[1718954501651,1.26139479,3521.2,3521.1,6.90014945]
[1718954501920,1.75318446,3521.2,3521.1,6.90014945]
[1718954502493,1.26139479,3521.2,3521.1,6.90014945]
[1718954502734,1.75318364,3521.9,3521.1,6.90014945]
[1718954502910,1.75339445,3521.8,3521.6,0.873]
[1718954503238,1.75339445,3521.7,3521.6,0.873]
[1718954503727,1.75339445,3521.7,3521.1,5.3327]
[1718954503937,1.75339445,3521.6,3521.5,0.873]
[1718954504438,1.75339694,3521.6,3521.5,0.873]
[1718954505492,1.75339694,3521.6,3520.9,2.3992]
[1718954505696,1.75339694,3521.5,3521.4,0.873]
[1718954507560,1.75339185,3521.5,3521.4,0.873]
[1718954507718,1.7533919,3521.5,3521.4,0.873]
[1718954510790,1.75338879,3521.5,3521.4,0.873]
[1718954511127,1.2616056,3521.5,3521.4,0.873]
[1718954511409,1.75338929,3521.5,3521.4,0.873]
[1718954511840,1.2616056,3521.5,3521.4,0.873]
[1718954512134,0.49178369,3521.5,3521.4,0.873]
[1718954512339,1.2616056,3521.5,3521.4,0.873]
[1718954512588,1.75338929,3521.5,3521.4,0.92074301]
[1718954513922,1.2616056,3521.5,3521.4,0.92074301]
[1718954514017,1.75338592,3521.5,3521.4,0.92074301]
[1718954515267,1.75338592,3521.5,3521.4,1.25395731]
[1718954515591,1.2616056,3521.5,3521.4,1.25395731]
[1718954515743,1.75337379,3521.5,3521.4,1.25395731]
[1718954517065,1.2616056,3521.5,3521.4,1.25395731]
[1718954517432,0.49176831,3521.5,3521.4,1.25395731]
[1718954517634,1.75337391,3521.9,3521.4,1.25395731]
[1718954517833,1.75337391,3521.8,3521.7,0.873]
[1718954518156,5.75337391,3521.8,3521.7,0.873]
[1718954518333,5.75337391,3521.8,3521.7,0.92074301]
[1718954520270,5.2616056,3521.8,3521.7,0.92074301]
[1718954520441,5.75337114,3521.8,3521.7,0.92074301]
[1718954520947,5.7533712,3521.8,3521.7,0.92074301]
[1718954521458,5.2616056,3521.8,3521.7,0.92074301]
[1718954521664,5.75337248,3521.8,3521.7,3.40044301]
[1718954521861,1.2616056,3521.8,3521.7,4.04048731]
[1718954522060,2.3592,3523.2,3521.8,2.4797]
[1718954522224,1.75276285,3523.1,3521.9,2.93925158]
[1718954522554,1.26115832,3523.0,3522.1,2.3546]
[1718954522819,1.26115832,3522.9,3522.1,2.3546]
[1718954522929,0.4915821,3522.8,3522.2,0.74468429]
[1718954523135,1.26115832,3522.7,3522.3,0.05676742]
[1718954523360,1.26115832,3522.7,3522.6,0.873]
[1718954523656,1.26115832,3523.4,3522.6,0.92087095]
[1718954523888,1.75274032,3523.3,3522.6,0.04787095]
[1718954524047,1.75274032,3523.2,3522.6,0.04787095]
[1718954524360,1.75274032,3523.1,3522.2,3.6400443]
[1718954524663,1.75274032,3523.0,3522.4,2.3747]
[1718954524871,1.709,3524.9,3522.4,2.3747]
[1718954524872,2.3464,3523.9,3522.9,0.873]
[1718954525057,2.3464,3523.9,3522.4,5.3747]
[1718954525058,1.98799841,3523.8,3523.4,0.873]
[1718954525366,1.75335841,3523.7,3523.4,0.873]
[1718954525624,1.75335514,3523.6,3523.4,0.873]
[1718954525749,0.23464,3523.8,3523.5,0.04787095]
[1718954525929,1.2617784,3523.7,3523.5,0.04787095]
[1718954526124,0.49152713,3523.6,3523.5,0.04787095]
[1718954526342,1.75330553,3523.6,3523.5,0.04787095]
[1718954527248,0.49152713,3523.6,3523.5,0.04787095]
[1718954527447,0.30725671,3523.6,3523.5,0.04787095]
[1718954527680,0.30725671,3523.6,3523.5,0.04723533]
[1718954527871,0.49152713,3523.8,3523.5,0.04723533]
[1718954528154,0.49152713,3523.8,3523.6,0.873]
[1718954528694,2.3464,3523.9,3523.7,0.04723533]
[1718954528977,1.75361807,3523.8,3523.7,0.04723533]
[1718954529143,2.3464,3523.9,3523.7,0.04723533]
[1718954529348,0.49151067,3523.8,3523.7,0.04723533]
[1718954529880,2.58104,3523.9,3523.7,0.04723533]
[1718954530179,0.49151375,3523.8,3523.7,0.04723533]
[1718954530545,2.3464,3523.9,3523.7,0.04723533]
[1718954531359,2.2918,3524.4,3523.7,0.04723533]
[1718954531558,2.2918,3524.4,3524.1,0.873]
[1718954531797,4.0,3524.2,3524.1,0.873]
[1718954532168,4.0,3524.2,3524.1,0.92023533]
[1718954532745,4.0,3524.2,3524.1,0.04723533]
[1718954532944,0.62918,3524.2,3523.9,0.873]
[1718954533147,2.2918,3524.4,3523.9,0.873]
[1718954533472,2.2918,3524.4,3524.0,0.04637116]
[1718954534950,4.0,3524.1,3523.5,3.6740701]
[1718954535166,4.0,3524.1,3523.1,12.28]
[1718954535167,0.873,3523.6,3522.0,12.28]
[1718954535373,0.873,3523.3,3522.3,0.873]
[1718954535595,1.75421067,3523.2,3522.3,0.873]
[1718954535801,0.49164636,3523.1,3522.3,0.873]
[1718954535966,0.98104743,3523.2,3522.3,0.873]
[1718954536871,0.98104743,3523.2,3522.5,0.873]
[1718954537075,0.48940107,3523.2,3522.5,0.873]
[1718954537467,4.0,3523.0,3522.0,3.0]
[1718954537683,0.49164636,3522.9,3522.1,0.53038]
[1718954538438,4.0,3523.0,3522.1,0.53038]
[1718954538608,4.0,3522.8,3522.1,0.53038]
[1718954538841,4.0,3522.8,3522.2,0.583418]
[1718954541278,0.49167679,3522.7,3522.2,0.583418]
[1718954541531,0.49169764,3522.7,3522.2,0.583418]
[1718954542498,0.49169764,3522.7,3522.3,0.03378727]
[1718954544848,4.0,3522.8,3522.3,0.03378727]
[1718954544916,0.49171637,3522.7,3522.3,0.03378727]
[1718954547863,0.49171727,3522.7,3521.9,2.3038]
[1718954548024,0.49171727,3522.7,3521.6,5.3693]
[1718954548340,6.3557,3522.8,3522.0,0.03378727]
[1718954548446,0.49171712,3522.7,3521.7,1.2464]
[1718954548701,0.49171712,3522.7,3521.8,0.03378727]
[1718954548912,4.0,3522.6,3521.8,0.03378727]
[1718954549107,0.49171712,3522.5,3521.8,0.50276772]
[1718954550028,4.0,3522.4,3521.8,0.03378727]
[1718954550331,0.49171712,3522.3,3521.8,0.03378727]
[1718954550529,0.49171712,3522.3,3521.6,5.3693]
[1718954550831,4.0,3522.4,3521.6,5.3693]
[1718954551036,0.49175538,3522.3,3521.7,0.03347274]
[1718954554234,0.49173655,3522.3,3521.7,0.03347274]
[1718954556014,4.0,3522.4,3521.7,0.03347274]
[1718954556530,0.49171742,3522.3,3521.7,0.03347274]
[1718954556843,0.49170622,3522.3,3521.7,0.03347274]
[1718954557149,4.0,3522.4,3521.8,1.27727727]
[1718954557435,4.0,3522.4,3521.9,0.03236883]
[1718954557855,2.3557,3522.8,3521.9,0.03236883]
[1718954558015,1.75332586,3522.7,3521.9,0.03236883]
[1718954558216,1.75332595,3522.6,3521.9,0.03236883]
[1718954558443,0.49170065,3522.5,3521.9,0.03236883]
[1718954558656,0.49170065,3522.7,3521.9,0.03236883]
[1718954558861,1.26179649,3522.6,3521.9,0.03236883]
[1718954559152,0.49170065,3522.5,3521.9,0.03236883]
[1718954559521,0.49170065,3522.7,3522.0,0.872]
[1718954559851,1.2618226,3522.6,3522.1,0.03236883]
[1718954560029,0.49170065,3522.5,3522.1,0.03236883]
[1718954560226,2.3557,3522.8,3522.1,0.03236883]
[1718954560487,0.49171323,3522.5,3522.1,0.03236883]
[1718954560650,0.49171323,3522.6,3522.1,0.03236883]
[1718954560848,1.2616475,3522.5,3522.1,0.03236883]
[1718954561031,0.49171323,3522.4,3522.1,0.03236883]
[1718954561228,0.49171323,3522.7,3522.1,0.03236883]
[1718954561423,1.26165755,3522.6,3522.1,0.03236883]
[1718954561631,0.49171323,3522.5,3522.1,0.03236883]
[1718954562060,2.3557,3522.8,3521.9,0.872]
[1718954562061,0.49171323,3522.7,3521.9,0.872]
[1718954562265,1.26174407,3522.6,3522.2,0.0313789]
[1718954562427,0.49171323,3522.5,3522.0,2.2749]
[1718954562623,0.49171323,3522.5,3522.1,0.0313789]
[1718954562879,0.49171323,3522.7,3522.1,0.0313789]
[1718954563036,1.26164048,3522.6,3522.1,0.9033789]
[1718954563224,0.49171323,3522.5,3522.1,3.9033789]
[1718954563452,2.67847,3522.8,3522.1,3.9033789]
[1718954563627,0.49171038,3522.5,3522.1,3.9033789]
[1718954563850,0.49171038,3522.6,3522.1,3.9033789]
[1718954564151,1.26170854,3522.5,3522.1,3.9033789]
[1718954564357,0.49171038,3522.4,3522.1,3.9033789]
[1718954564561,0.49171038,3522.7,3522.1,3.9033789]
[1718954564754,1.753401,3522.6,3522.1,3.9033789]
[1718954565054,1.753401,3522.5,3522.1,3.9033789]
[1718954565238,0.49171038,3522.4,3522.1,3.9033789]
[1718954565443,0.49171038,3523.0,3522.1,3.9033789]
[1718954565645,1.75337935,3522.9,3522.1,3.9033789]
[1718954565847,1.75337935,3522.8,3522.1,3.9033789]
[1718954566041,1.75337935,3522.7,3522.1,3.9033789]
[1718954566346,1.75337935,3522.6,3522.1,3.9033789]
[1718954566544,2.4717,3523.1,3522.4,2.438]
[1718954566734,4.0,3522.5,3522.4,2.438]
[1718954566953,4.49166646,3522.5,3522.4,3.31]
[1718954567162,0.49164591,3522.5,3522.4,3.31]
[1718954567363,0.49164591,3523.3,3522.4,3.3413789]
[1718954567531,1.75331784,3523.2,3522.4,3.3413789]
[1718954567739,2.3653,3523.4,3522.4,3.3413789]
[1718954567740,2.16517737,3523.1,3522.4,3.3413789]
[1718954568066,1.75331559,3523.0,3522.4,3.3413789]
[1718954568246,1.75331559,3522.9,3522.4,3.3413789]
[1718954568443,1.75331559,3522.8,3522.4,3.3413789]
[1718954568643,0.49164366,3522.7,3522.4,3.3413789]
[1718954568859,0.49164366,3523.0,3522.4,3.3413789]
[1718954569145,1.75350039,3522.9,3522.4,3.3413789]
[1718954569351,1.75350039,3522.8,3522.4,3.3413789]
[1718954569550,0.41186178,3523.1,3522.4,3.3413789]
[1718954569551,0.49164366,3522.7,3522.4,3.3413789]
[1718954569886,0.49164902,3523.0,3522.4,3.3413789]
[1718954570090,1.75350219,3522.9,3522.4,3.3413789]
[1718954570240,1.75350219,3522.8,3522.4,3.3413789]
[1718954570576,0.49164902,3522.7,3522.4,3.3413789]
[1718954570874,0.49164902,3523.2,3522.4,3.3413789]
[1718954571083,1.75347242,3523.1,3522.4,3.3413789]
[1718954571246,1.75347242,3523.0,3522.4,3.3413789]
[1718954571580,1.75347242,3522.9,3522.4,3.3413789]
[1718954571869,1.75347242,3522.8,3522.4,3.3413789]
[1718954572034,1.75347242,3522.7,3522.4,3.3413789]
[1718954572237,0.49164902,3522.6,3522.4,3.3413789]
[1718954572439,0.49164902,3523.2,3522.4,3.97551679]
[1718954572642,1.75351571,3523.1,3522.4,3.3413789]
[1718954572981,1.26186669,3523.0,3522.4,3.3413789]
[1718954573182,1.75351427,3522.9,3522.4,3.3413789]
[1718954573370,1.75351427,3522.8,3522.4,3.3413789]
[1718954573550,1.75351427,3522.7,3522.4,3.3413789]
[1718954573735,0.49164758,3522.6,3522.4,3.3413789]
[1718954573946,0.49164758,3523.2,3522.4,3.3413789]
[1718954574243,1.75353467,3523.1,3522.4,3.3413789]
[1718954574469,1.75353467,3523.0,3522.4,3.3413789]
[1718954574649,1.75353467,3522.9,3522.4,3.3413789]
[1718954574854,1.75353467,3522.8,3522.4,3.3413789]
[1718954575146,1.75353467,3522.7,3522.4,3.3413789]
[1718954575369,1.75353467,3522.6,3522.4,3.3413789]
[1718954575552,0.49164758,3522.5,3522.4,3.3413789]
[1718954575756,0.49164758,3523.1,3522.4,3.3413789]
[1718954575986,1.26184609,3523.0,3522.4,3.3413789]
[1718954576160,0.49166028,3522.9,3522.4,3.3413789]
[1718954576344,1.26184609,3522.8,3522.4,3.3413789]
[1718954576609,0.49166347,3522.7,3522.4,3.3413789]
[1718954576873,1.26184609,3522.6,3522.4,3.3413789]
[1718954577077,0.49166347,3522.5,3522.4,3.3413789]
[1718954577276,1.75349764,3522.5,3522.4,3.3413789]
[1718954579256,1.26184609,3522.5,3522.4,3.3413789]
[1718954579486,0.49166653,3522.5,3522.4,3.3413789]
[1718954579642,1.26184609,3522.5,3522.4,3.3413789]
[1718954579975,1.75351262,3523.1,3522.4,3.3413789]
[1718954580175,1.75351262,3523.0,3522.4,3.3413789]
[1718954580383,1.75351262,3522.9,3522.4,3.3413789]
[1718954580584,1.75351262,3522.8,3522.4,3.3413789]
[1718954580877,1.75351262,3522.7,3522.4,3.3413789]
[1718954581079,1.75351262,3522.6,3522.4,3.3413789]
[1718954581250,1.75351262,3522.5,3522.4,3.3413789]
[1718954581603,1.26184609,3522.5,3522.4,3.3413789]
[1718954581754,0.4916617,3522.5,3522.4,3.3413789]
[1718954581943,1.26184609,3522.5,3522.4,3.3413789]
[1718954582285,1.75350779,3522.9,3522.4,3.3413789]
[1718954582487,0.35889073,3523.2,3522.4,3.3413789]
[1718954582488,1.75350779,3522.8,3522.4,3.3413789]
[1718954582643,1.75350779,3522.7,3522.4,2.4693789]
[1718954582840,1.75350779,3522.6,3522.4,2.4693789]
[1718954583191,1.75350779,3522.5,3522.4,2.4693789]
[1718954584809,1.75349746,3522.5,3522.4,2.4693789]
[1718954585289,1.26184609,3522.5,3522.4,2.4693789]
[1718954585489,1.26184609,3522.5,3522.4,0.0313789]
[1718954585490,1.75352875,3522.5,3522.4,0.0313789]
[1718954585668,1.75352875,3522.5,3522.0,3.1269]
[1718954585928,1.75354788,3522.4,3522.1,3.0]
[1718954586162,1.75354788,3522.3,3522.1,3.0]
[1718954586385,2.2885,3522.8,3522.1,3.0]
[1718954586386,1.75354788,3522.2,3522.1,3.0]
[1718954587285,1.75354788,3522.2,3522.1,3.02957983]
[1718954587830,1.75354815,3522.2,3522.1,3.02957983]
[1718954588179,1.75354815,3522.2,3522.1,0.02957983]
[1718954589721,1.75354815,3522.2,3521.8,0.872]
[1718954590011,1.75354815,3522.1,3521.8,0.872]
[1718954590231,1.75354815,3522.0,3521.8,0.872]
[1718954590383,1.75354815,3521.9,3521.8,0.872]
[1718954591021,1.7535947,3521.9,3521.8,0.872]
[1718954592215,1.7535947,3521.9,3521.6,5.3932]
[1718954592415,2.4533,3522.3,3521.8,0.872]
[1718954592619,1.75336045,3522.2,3521.8,0.872]
[1718954592819,1.75336045,3522.1,3521.8,0.872]
[1718954593004,1.75336045,3522.0,3521.8,0.872]
[1718954593317,1.75336045,3522.0,3521.6,5.3932]
[1718954593318,1.75336045,3521.9,3521.6,3.0]
[1718954593528,1.75336045,3521.8,3521.6,3.0]
[1718954593685,1.75336045,3521.7,3521.6,3.0]
[1718954593890,1.26161321,3521.7,3521.5,7.37]
[1718954594260,2.4124,3521.8,3521.5,7.37]
[1718954594261,1.75344463,3521.6,3521.5,7.37]
[1718954594418,1.75344463,3521.6,3521.5,10.37]
[1718954594610,1.75344417,3521.6,3521.5,10.37]
[1718954595211,1.26161321,3521.6,3521.5,3.0]
[1718954595432,1.26161321,3521.6,3521.0,0.872]
[1718954595600,1.753444,3521.5,3521.0,0.872]
[1718954595801,1.753444,3521.4,3521.0,0.872]
[1718954595997,1.753444,3521.3,3521.0,0.872]
[1718954596211,1.753444,3521.2,3521.0,0.872]
[1718954596414,1.753444,3521.1,3521.0,0.872]
[1718954597039,1.753444,3521.1,3520.9,3.0]
[1718954597332,2.4124,3521.8,3521.0,0.872]
[1718954597546,2.08179783,3521.7,3521.0,0.872]
[1718954597744,1.75335783,3521.6,3521.0,0.872]
[1718954598029,1.75335783,3521.5,3521.0,0.872]
[1718954598231,1.75335783,3521.4,3521.0,0.872]
[1718954598419,1.75335783,3521.3,3521.0,0.872]
[1718954598615,1.75335783,3521.2,3521.0,0.872]
[1718954598823,1.26150841,3521.1,3521.0,0.872]
[1718954599233,1.75336162,3521.7,3520.9,3.0]
[1718954599432,1.75336162,3521.6,3520.9,3.0]
[1718954599733,1.75336162,3521.5,3520.9,3.0]
[1718954599919,4.14936162,3521.4,3520.9,3.0]
[1718954600124,1.26150841,3521.3,3520.6,0.872]
[1718954600369,0.872,3521.0,3520.0,7.37]
[1718954600492,1.75340586,3520.9,3520.1,3.0]
[1718954600699,2.396,3520.7,3520.0,7.37]
[1718954600894,0.872,3520.4,3520.0,7.37]
[1718954601163,1.75340586,3520.3,3520.0,7.37]
[1718954602601,5.75340586,3520.3,3520.0,7.37]
[1718954603262,5.26150841,3520.3,3520.0,7.37]
[1718954603407,6.36698625,3520.3,3520.0,7.37]
[1718954603607,5.87485925,3520.3,3520.0,7.37]
[1718954603927,6.36699955,3520.3,3520.0,7.37]
[1718954604468,6.3669996,3520.3,3520.0,7.37]
[1718954604802,7.2389996,3520.3,3520.2,1.16363334]
[1718954606244,6.74685925,3520.3,3520.2,1.16363334]
[1718954606436,7.23899206,3520.3,3520.2,1.1383]
[1718954607017,5.97748365,3520.3,3520.2,1.1383]
[1718954612418,5.48535084,3520.3,3520.2,1.1383]
[1718954612613,5.97747533,3520.3,3520.2,1.1383]
[1718954612972,5.48535084,3520.3,3520.2,1.1383]
[1718954613134,5.97747981,3520.3,3520.2,1.1383]
[1718954615726,5.48535084,3520.3,3520.2,1.1383]
[1718954616012,5.97745379,3520.3,3520.2,1.1383]
[1718954618743,5.48535084,3520.3,3520.2,1.1383]
[1718954618916,5.97745554,3520.3,3520.2,1.1383]
[1718954622026,5.97745856,3520.3,3520.2,1.1383]
[1718954622445,5.48535084,3520.3,3520.2,1.1383]
[1718954622614,5.97745854,3520.3,3520.2,1.1383]
[1718954623838,8.27285854,3520.3,3520.2,1.1383]
[1718954624470,8.27285854,3520.3,3520.2,0.84162898]
[1718954625123,10.77675084,3520.3,3520.2,0.84162898]
[1718954625327,11.81891655,3520.3,3520.2,0.84162898]
[1718954628482,11.81889379,3520.3,3520.2,0.84162898]
[1718954630157,11.81889379,3520.3,3520.2,0.49162898]
[1718954631660,11.32675084,3520.3,3520.2,0.49162898]
[1718954631852,11.32675084,3520.3,3518.9,3.0]
[1718954631853,2.4222,3520.2,3518.9,5.4322]
[1718954632099,0.872,3519.6,3518.9,5.4322]
[1718954632229,0.49216109,3519.5,3519.0,0.02529998]
[1718954632444,0.49216109,3519.4,3519.0,0.02529998]
[1718954632656,0.49216109,3519.3,3518.9,5.4322]
[1718954632864,0.872,3519.8,3518.9,5.4322]
[1718954632865,0.49216811,3519.2,3519.1,0.02529998]
[1718954633240,0.49216811,3519.2,3518.9,5.4322]
[1718954633447,2.4222,3519.7,3519.1,0.02529998]
[1718954633753,0.49216495,3519.6,3519.2,0.02529998]
[1718954634070,4.0,3519.3,3518.9,5.4322]
[1718954634364,0.49216495,3519.2,3518.9,5.4322]
[1718954634560,0.49216495,3519.1,3518.9,5.4322]
[1718954634864,0.49217316,3519.0,3518.9,5.4322]
[1718954637771,0.49217316,3519.2,3518.9,5.4322]
[1718954637959,0.49217791,3519.1,3518.9,5.4322]
[1718954638146,0.49217791,3519.0,3518.9,5.4322]
[1718954638469,0.49217791,3519.2,3518.9,5.4322]
[1718954638762,0.49217791,3519.1,3518.9,5.4322]
[1718954638974,0.49217791,3519.0,3518.9,5.4322]
[1718954639284,0.49217791,3519.2,3518.9,5.4322]
[1718954639487,4.0,3519.3,3518.9,2.4322]
[1718954639488,0.49217791,3519.1,3518.9,2.4322]
[1718954639636,0.49217791,3519.0,3518.9,2.4322]
[1718954640793,0.49221801,3519.0,3518.7,5.3735]
[1718954640942,0.49221801,3518.9,3518.8,3.0]
[1718954641283,0.49221641,3518.9,3518.8,3.0]
[1718954641565,4.0,3519.3,3518.7,5.3735]
[1718954641680,0.49221967,3518.9,3518.7,5.3735]
[1718954641846,0.49221967,3518.8,3518.7,5.3735]
[1718954642063,0.49221924,3519.2,3518.7,5.3735]
[1718954642250,0.49221924,3519.2,3518.3,7.37]
[1718954642251,1.75309833,3519.1,3518.4,2.3619]
[1718954642556,1.75309833,3519.0,3518.4,2.3619]
[1718954642753,0.872,3518.8,3518.3,7.37]
[1718954642983,6.996,3519.3,3518.3,7.37]
[1718954642984,0.872,3518.6,3518.3,7.37]
[1718954643163,1.7534391,3518.5,3518.0,3.0]
[1718954643522,1.75358669,3518.4,3517.8,3.0]
[1718954643659,1.75359345,3518.3,3517.7,5.3619]
[1718954643866,1.75359345,3518.2,3517.7,6.2339]
[1718954644089,1.75359345,3518.1,3517.7,6.2339]
[1718954644276,1.75359345,3518.0,3517.7,6.2339]
[1718954644503,1.75359345,3517.9,3517.7,6.2339]
[1718954644710,1.75359345,3517.8,3517.7,6.2339]
[1718954644921,1.75359345,3517.8,3517.7,3.0]
[1718954645199,1.75359345,3517.8,3517.5,0.872]
[1718954645375,1.75359345,3517.7,3517.5,3.872]
[1718954645558,0.872,3518.6,3517.5,3.872]
[1718954645559,1.75359345,3517.6,3517.5,3.872]
[1718954646084,1.75359345,3517.6,3517.5,3.0]
[1718954646296,1.26121986,3517.6,3517.4,2.3726]
[1718954646520,0.4923883,3517.6,3517.5,0.872]
[1718954646724,1.75294401,3518.3,3517.5,3.872]
[1718954647004,1.75294401,3518.2,3517.5,3.872]
[1718954647307,1.75294401,3518.1,3517.5,3.872]
[1718954647502,1.75294401,3518.0,3517.5,3.872]
[1718954647664,1.75294401,3517.9,3517.5,3.872]
[1718954647866,1.75294401,3517.8,3517.5,3.872]
[1718954648199,1.75294401,3517.7,3517.5,3.872]
[1718954648370,0.4923883,3517.6,3517.5,3.872]
[1718954648575,0.2663732,3518.4,3517.6,2.2855]
[1718954648778,2.278,3518.2,3517.6,3.0]
[1718954648983,2.13342089,3518.1,3517.6,3.0]
[1718954649291,1.26054115,3518.0,3517.4,3.0]
[1718954649487,1.75296075,3518.0,3517.4,3.0]